bitfinex/quotes_SOLUSD_20260114
["timestamp","ask_amount","ask_price","bid_price","bid_amount"]
[1768373418570,0.5937063,144.34,144.31,0.71082972]
[1768373419690,0.5937063,144.34,144.3,9.507317]
[1768373420073,0.5937063,144.34,144.31,0.68744068]
[1768373420392,0.5937063,144.34,144.3,9.507317]
[1768373420579,3.23169863,144.36,144.32,0.68744068]
[1768373420776,0.62367024,144.35,144.32,0.68744068]
[1768373425083,2.57750241,144.36,144.32,0.68744068]
[1768373425272,0.62367024,144.36,144.32,0.68744068]
[1768373425680,0.62367024,144.36,144.31,3.26494309]
[1768373426293,0.62367024,144.36,144.32,0.68744068]
[1768373427372,0.62367024,144.36,144.33,0.68744068]
[1768373428386,0.62367024,144.36,144.32,10.19389425]
[1768373429594,10.15798356,144.38,144.33,0.68744068]
[1768373429988,0.62367024,144.37,144.33,0.68744068]
[1768373431281,0.62367024,144.37,144.32,9.50645357]
[1768373431682,0.62367024,144.37,144.32,10.19389425]
[1768373431877,0.62367024,144.37,144.32,9.50645357]
[1768373432404,0.62367024,144.37,144.32,10.19389425]
[1768373432701,0.62367024,144.37,144.33,0.68744068]
[1768373434601,0.62367024,144.37,144.34,0.68744068]
[1768373434807,3.20117265,144.37,144.34,0.68744068]
[1768373435407,0.62367024,144.37,144.34,0.68744068]
[1768373436712,0.62367024,144.37,144.33,10.17651911]
[1768373437092,0.62367024,144.37,144.33,9.50604788]
[1768373437595,0.62367024,144.37,144.33,2.57750241]
[1768373437812,0.62367024,144.37,144.32,6.92882259]
[1768373438007,0.62367024,144.37,144.32,9.506325]
[1768373438913,0.62367024,144.37,144.32,10.17679623]
[1768373439085,0.62367024,144.37,144.33,0.67047123]
[1768373439284,0.62367024,144.37,144.33,7.5990374]
[1768373439485,0.62367024,144.37,144.34,0.67047123]
[1768373439687,0.62367024,144.37,144.33,6.92856617]
[1768373439985,0.62367024,144.37,144.33,7.5990374]
[1768373440198,3.20117265,144.37,144.33,7.5990374]
[1768373440508,0.65389096,144.36,144.33,7.5990374]
[1768373440811,2.57750241,144.38,144.33,7.5990374]
[1768373442696,0.68996249,144.37,144.34,0.67047123]
[1768373443316,2.57750241,144.38,144.34,0.67047123]
[1768373443491,3.13606405,144.38,144.34,0.67047123]
[1768373443913,13.32996249,144.39,144.35,0.67047123]
[1768373444208,0.68996249,144.41,144.37,0.67047123]
[1768373444808,0.68996249,144.41,144.37,7.5969024]
[1768373445015,0.68996249,144.41,144.38,0.67047123]
[1768373445623,0.68996249,144.41,144.37,9.50393358]
[1768373446122,0.68996249,144.42,144.38,0.67047123]
[1768373446314,0.68996249,144.42,144.39,0.67047123]
[1768373446490,0.68996249,144.42,144.38,3.24797364]
[1768373446691,0.68996249,144.42,144.38,0.67047123]
[1768373446886,0.68996249,144.42,144.39,6.92568737]
[1768373447199,0.68996249,144.42,144.39,7.5961586]
[1768373448091,0.68996249,144.42,144.37,24.91373506]
[1768373448292,0.68996249,144.42,144.37,27.49123747]
[1768373448713,0.55856164,144.41,144.37,7.59711804]
[1768373450011,0.68864848,144.4,144.37,6.92664681]
[1768373452829,0.68864848,144.4,144.37,7.59711804]
[1768373454720,4.02540688,144.42,144.37,7.59711804]
[1768373455025,0.68996249,144.41,144.37,7.59711804]
[1768373455914,0.68996249,144.41,144.38,0.67047123]
[1768373457620,4.58396852,144.42,144.39,0.67047123]
[1768373458307,0.55856164,144.42,144.39,0.67047123]
[1768373460300,0.68736062,144.39,144.35,6.92748553]
[1768373460501,4.58654437,144.38,144.34,7.59832973]
[1768373460702,4.02540688,144.38,144.35,0.67047123]
[1768373461421,4.58396852,144.38,144.35,0.67047123]
[1768373461724,0.55986251,144.36,144.33,7.59882263]
[1768373462024,4.71536937,144.37,144.34,0.67047123]
[1768373462315,4.02540688,144.37,144.34,0.67047123]
[1768373462722,4.02540688,144.37,144.34,7.59853716]
[1768373463020,0.68996249,144.38,144.34,7.59853716]
[1768373463224,4.71536937,144.38,144.34,7.59853716]
[1768373464320,0.55856164,144.37,144.34,6.92806593]
[1768373464701,4.71536937,144.38,144.34,7.59853716]
[1768373466212,4.02540688,144.37,144.34,7.59853716]
[1768373466521,4.71536937,144.38,144.34,7.59853716]
[1768373468845,4.71536937,144.38,144.35,0.67642799]
[1768373470406,0.55856164,144.37,144.34,7.60443903]
[1768373472509,0.71791367,144.38,144.34,7.60443903]
[1768373474038,0.71791367,144.38,144.35,0.67642799]
[1768373476338,4.74332055,144.38,144.35,0.67642799]
[1768373477241,0.71791367,144.38,144.35,0.67642799]
[1768373477721,4.74332055,144.38,144.35,0.67642799]
[1768373477920,4.74332055,144.38,144.35,0.61642799]
[1768373479955,11.66955502,144.38,144.35,0.61642799]
[1768373480155,4.61569685,144.37,144.34,0.69846218]
[1768373480737,0.59028997,144.37,144.34,0.69846218]
[1768373481152,4.61569685,144.37,144.34,0.69846218]
[1768373481346,6.92623447,144.38,144.34,7.6262451]
[1768373481347,4.61817748,144.38,144.34,7.6262451]
[1768373481548,0.71418161,144.37,144.34,7.6262451]
[1768373481740,0.71418161,144.37,144.34,0.69846218]
[1768373484559,13.33540798,144.39,144.36,0.69846218]
[1768373484748,0.71540798,144.4,144.37,7.62510899]
[1768373484955,0.61877685,144.41,144.38,0.67219324]
[1768373485156,0.61877685,144.41,144.38,0.64592412]
[1768373485654,4.64418373,144.41,144.38,0.64592412]
[1768373485856,4.64418373,144.41,144.37,6.92664681]
[1768373486048,0.71540798,144.4,144.37,6.92664681]
[1768373487056,0.71540798,144.4,144.37,7.62510899]
[1768373487361,0.64478328,144.41,144.38,0.69846218]
[1768373488964,11.66525608,144.42,144.38,0.69846218]
[1768373489146,4.02540688,144.41,144.38,0.69846218]
[1768373489650,4.74081486,144.42,144.39,0.69846218]
[1768373489855,12.72,144.43,144.39,0.69846218]
[1768373490364,13.36478328,144.43,144.39,0.69846218]
[1768373490862,13.36478328,144.43,144.4,0.69846218]
[1768373491861,17.39019016,144.43,144.39,7.62389316]
[1768373492964,4.77019016,144.43,144.39,7.62389316]
[1768373493162,0.74478328,144.43,144.4,0.69846218]
[1768373494059,0.74478328,144.43,144.4,7.62353424]
[1768373494060,0.1,144.43,144.4,7.62353424]
[1768373494267,0.74478328,144.43,144.4,7.62353424]
[1768373494567,0.1,144.43,144.41,0.69846218]
[1768373495867,0.1,144.43,144.4,7.59707082]
[1768373496071,4.77019016,144.43,144.4,0.67199876]
[1768373497449,0.1,144.43,144.41,0.67199876]
[1768373498676,0.1,144.43,144.41,0.61199876]
[1768373499253,0.1,144.43,144.41,6.92452637]
[1768373499948,0.1,144.43,144.41,10.94993325]
[1768373500569,0.1,144.43,144.41,6.92452637]
[1768373500871,0.1,144.43,144.41,7.59652513]
[1768373501373,0.1,144.43,144.41,0.67199876]
[1768373505282,7.02377566,144.43,144.41,0.67199876]
[1768373505471,0.1,144.43,144.41,0.67199876]
[1768373510170,0.80303437,144.43,144.4,4.02540688]
[1768373510566,0.80303437,144.43,144.4,4.69740564]
[1768373510969,0.1,144.43,144.41,0.67199876]
[1768373511172,0.80303437,144.43,144.4,6.92519596]
[1768373511367,0.1,144.43,144.41,0.67199876]
[1768373515082,0.80303437,144.43,144.4,7.59719472]
[1768373515287,0.80303437,144.43,144.4,0.67199876]
[1768373517688,10.30190927,144.43,144.4,0.67199876]
[1768373518067,7.72681644,144.43,144.4,0.67199876]
[1768373518268,0.80303437,144.43,144.4,0.67199876]
[1768373520795,7.72682448,144.43,144.4,0.67199876]
[1768373521898,0.80303437,144.43,144.4,0.67199876]
[1768373524512,0.1,144.43,144.4,0.67199876]
[1768373525093,0.80303437,144.43,144.4,0.67199876]
[1768373525591,0.1,144.43,144.41,3.28975111]
[1768373525787,0.1,144.43,144.41,0.71465828]
[1768373531013,0.80601495,144.43,144.4,10.21485857]
[1768373531215,0.80601495,144.43,144.41,6.9245955]
[1768373531424,0.1,144.43,144.42,0.71465828]
[1768373535125,0.1,144.43,144.4,20.25963979]
[1768373535445,0.80601495,144.43,144.4,20.25963979]
[1768373536726,0.1,144.43,144.41,0.71465828]
[1768373538536,0.77307309,144.43,144.4,7.61609408]
[1768373538830,0.1,144.43,144.41,0.69111257]
[1768373542633,0.1,144.43,144.41,7.61583697]
[1768373547328,0.1,144.43,144.42,0.69111257]
[1768373547534,0.1,144.44,144.42,0.69111257]
[1768373550219,0.77307309,144.44,144.42,0.69111257]
[1768373554624,0.77307309,144.44,144.42,0.63111257]
[1768373555830,0.1,144.44,144.42,0.63111257]
[1768373558254,0.3120637,144.45,144.43,0.69520203]
[1768373562734,0.3120637,144.45,144.43,0.63520203]
[1768373565737,2.88715653,144.45,144.43,0.63520203]
[1768373566055,2.88715653,144.45,144.42,0.69520203]
[1768373566262,0.67126691,144.44,144.41,7.61992643]
[1768373566943,3.55842344,144.45,144.42,0.69520203]
[1768373567670,0.67126691,144.43,144.41,0.69520203]
[1768373568169,3.24635974,144.44,144.41,0.69520203]
[1768373568744,0.67126691,144.44,144.41,7.61989986]
[1768373569664,10.48130236,144.45,144.42,0.69520203]
[1768373571065,0.67126691,144.44,144.41,7.61989986]
[1768373571956,3.24635974,144.44,144.41,7.61989986]
[1768373572164,0.98333061,144.45,144.42,0.69520203]
[1768373573271,0.3120637,144.45,144.43,0.69520203]
[1768373575187,2.67509283,144.47,144.44,0.69520203]
[1768373575356,4.12197639,144.47,144.44,0.69520203]
[1768373576366,4.7932433,144.47,144.44,0.69520203]
[1768373576768,0.77126691,144.47,144.44,7.61839516]
[1768373577472,0.1,144.47,144.45,0.69520203]
[1768373579749,0.77126691,144.47,144.44,7.61839516]
[1768373580181,104.3,144.5,144.47,0.69520203]
[1768373580388,0.77126691,144.5,144.47,0.69520203]
[1768373580673,0.77126691,144.5,144.46,0.69520203]
[1768373580979,0.67126691,144.49,144.46,13.31520203]
[1768373581272,4.6932433,144.48,144.45,12.62]
[1768373581461,0.67126691,144.47,144.45,12.62]
[1768373581658,4.6932433,144.47,144.44,7.61829317]
[1768373581965,0.67126691,144.47,144.44,7.61829317]
[1768373582166,4.6932433,144.48,144.44,7.61829317]
[1768373582746,0.67126691,144.48,144.44,7.61829317]
[1768373583477,0.67126691,144.48,144.45,0.69520203]
[1768373583668,4.6932433,144.49,144.45,0.69520203]
[1768373583871,0.67126691,144.49,144.45,0.69520203]
[1768373584072,4.02197639,144.49,144.45,0.69520203]
[1768373584378,4.02197639,144.49,144.46,0.69520203]
[1768373584674,4.7932433,144.5,144.46,0.69520203]
[1768373585579,4.12197639,144.5,144.46,0.69520203]
[1768373585775,0.1,144.5,144.46,0.69520203]
[1768373586579,0.1,144.5,144.47,0.72015712]
[1768373587678,4.12197639,144.5,144.47,0.72015712]
[1768373588580,4.80257889,144.51,144.47,0.72015712]
[1768373589362,4.80257889,144.51,144.48,0.72015712]
[1768373589562,0.1,144.51,144.48,0.72015712]
[1768373590064,0.7806025,144.51,144.47,10.94368969]
[1768373590266,0.7806025,144.51,144.47,11.66384681]
[1768373591283,0.7806025,144.51,144.47,7.64187042]
[1768373591458,0.1,144.51,144.48,0.72015712]
[1768373591658,0.1,144.51,144.48,0.66015712]
[1768373593075,0.1,144.51,144.48,6.92132674]
[1768373593568,0.1,144.51,144.48,7.60255881]
[1768373594490,0.1,144.51,144.5,0.68123207]
[1768373595068,0.1,144.52,144.5,0.68123207]
[1768373595274,0.1,144.52,144.49,7.50199101]
[1768373598497,0.81380036,144.52,144.49,7.50199101]
[1768373600995,4.83577675,144.52,144.49,0.58123207]
[1768373601371,0.71380036,144.51,144.48,7.50243881]
[1768373605186,0.71380036,144.51,144.48,7.44243881]
[1768373606888,0.71380036,144.48,144.42,0.58123207]
[1768373607194,4.02197639,144.48,144.45,7.58672177]
[1768373607375,6.9199742,144.51,144.45,7.58672177]
[1768373607376,4.02197639,144.49,144.45,7.58672177]
[1768373607983,4.02197639,144.49,144.46,0.66409467]
[1768373609098,4.73577675,144.49,144.46,0.66409467]
[1768373609298,0.71380036,144.49,144.46,0.66409467]
[1768373609600,4.73577675,144.49,144.46,0.66409467]
[1768373610294,0.71380036,144.48,144.45,0.66409467]
[1768373611395,0.71380036,144.48,144.45,7.58658986]
[1768373611900,4.73577675,144.49,144.46,0.66409467]
[1768373613102,0.71380036,144.49,144.46,0.66409467]
[1768373613576,0.71380036,144.49,144.46,7.5863791]
[1768373618208,4.73577675,144.49,144.46,7.5863791]
[1768373618405,0.69061204,144.48,144.46,6.92228443]
[1768373619905,0.69061204,144.48,144.44,6.92328994]
[1768373620206,0.69061204,144.48,144.44,7.59328136]
[1768373620506,0.69061204,144.48,144.45,0.66999142]
[1768373620888,0.69061204,144.48,144.44,24.90150622]
[1768373621089,0.69061204,144.48,144.45,0.66999142]
[1768373622404,4.71258843,144.48,144.46,6.92233144]
[1768373622788,0.69061204,144.47,144.46,6.92233144]
[1768373623509,0.69061204,144.47,144.44,24.2315148]
[1768373623896,4.71258843,144.48,144.45,0.66999142]
[1768373624214,0.69061204,144.47,144.44,24.90150622]
[1768373624400,0.69061204,144.47,144.44,24.2315148]
[1768373624996,0.69061204,144.47,144.44,24.90150622]
[1768373625914,0.69061204,144.48,144.45,7.59250907]
[1768373627913,0.69061204,144.48,144.45,6.92251765]
[1768373628113,0.69061204,144.48,144.45,7.59250907]
[1768373629008,0.69061204,144.48,144.44,21.33020125]
[1768373629009,0.69061204,144.48,144.44,24.2315148]
[1768373629208,0.69061204,144.48,144.44,24.90150622]
[1768373630986,0.69061204,144.51,144.47,4.69196781]
[1768373631606,0.69061204,144.51,144.47,0.66999142]
[1768373631793,0.69061204,144.5,144.46,13.28999142]
[1768373631999,0.69061204,144.5,144.46,17.31196781]
[1768373632211,0.69061204,144.5,144.46,0.66999142]
[1768373632408,0.69061204,144.5,144.46,4.69196781]
[1768373632912,0.69061204,144.5,144.46,0.66999142]
[1768373634509,0.69061204,144.5,144.46,7.59210294]
[1768373636700,0.69061204,144.5,144.47,0.69001911]
[1768373640407,0.72012655,144.51,144.48,0.69001911]
[1768373641109,0.82012655,144.52,144.48,0.69001911]
[1768373641923,0.72012655,144.51,144.48,0.69001911]
[1768373645718,0.72012655,144.51,144.47,7.63970593]
[1768373648228,0.72012655,144.51,144.48,0.71795661]
[1768373650708,0.72012655,144.51,144.47,10.21260298]
[1768373651524,0.72012655,144.51,144.48,0.71795661]
[1768373653531,0.72012655,144.51,144.47,7.63970593]
[1768373654612,0.72012655,144.51,144.48,0.71795661]
[1768373655142,7.64013928,144.51,144.48,0.71795661]
[1768373655432,7.6162821,144.51,144.47,0.71795661]
[1768373656329,10.18917915,144.51,144.47,0.71795661]
[1768373656830,0.69626937,144.5,144.46,7.64013339]
[1768373659331,0.69626937,144.5,144.46,10.21303044]
[1768373660158,0.69626937,144.5,144.46,7.64013339]
[1768373660316,0.69626937,144.5,144.46,10.21303044]
[1768373661236,0.69626937,144.5,144.46,7.64013339]
[1768373661542,0.69626937,144.5,144.46,10.21303044]
[1768373664339,0.67251477,144.48,144.44,0.70976575]
[1768373664541,0.67251477,144.46,144.43,0.70976575]
[1768373665321,0.67251477,144.46,144.42,7.6337597]
[1768373671256,0.67251477,144.46,144.42,10.20665675]
[1768373675337,0.67251477,144.46,144.42,7.6337597]
[1768373675963,0.65657044,144.45,144.42,6.92399395]
[1768373676447,0.65657044,144.45,144.42,0.69967857]
[1768373676839,3.22946749,144.46,144.42,0.69967857]
[1768373678550,3.22946749,144.46,144.43,0.69967857]
[1768373680360,0.65657044,144.45,144.43,0.69967857]
[1768373684240,0.65657044,144.45,144.43,7.62342013]
[1768373686761,0.62657044,144.45,144.43,7.62342013]
[1768373686964,2.57289705,144.47,144.44,0.69967857]
[1768373687864,2.57289705,144.47,144.43,7.62342013]
[1768373688750,3.22946749,144.47,144.43,7.62342013]
[1768373689249,0.65657044,144.46,144.43,7.62342013]
[1768373689466,0.65657044,144.46,144.42,6.92424871]
[1768373689673,0.65657044,144.46,144.43,0.69967857]
[1768373691268,0.65657044,144.46,144.43,6.92339794]
[1768373692663,0.65657044,144.46,144.43,0.69967857]
[1768373693770,0.65657044,144.46,144.43,7.62304878]
[1768373694656,3.22946749,144.46,144.43,7.62304878]
[1768373697179,0.65657044,144.48,144.44,0.69967857]
[1768373697458,0.65657044,144.47,144.43,24.23279346]
[1768373697660,0.65657044,144.47,144.44,0.69967857]
[1768373698667,0.65657044,144.47,144.44,7.62281749]
[1768373700366,0.65657044,144.47,144.44,6.92313892]
[1768373701574,0.65657044,144.47,144.44,7.62281749]
[1768373702970,0.65657044,144.46,144.43,7.62322009]
[1768373703172,0.62657044,144.46,144.43,7.62322009]
[1768373703762,0.59657041,144.46,144.43,7.62322009]
[1768373704481,0.56657041,144.46,144.43,7.62322009]
[1768373706152,4.02176625,144.44,144.39,0.65482626]
[1768373706358,4.71614914,144.43,144.39,7.5802476]
[1768373707075,4.71614914,144.43,144.4,0.65482626]
[1768373709078,0.69438289,144.42,144.4,0.65482626]
[1768373709259,0.66438288,144.42,144.4,0.65482626]
[1768373710590,0.6343828,144.42,144.4,0.65482626]
[1768373710961,0.60438274,144.42,144.4,0.65482626]
[1768373712178,4.62614899,144.42,144.39,0.65482626]
[1768373713468,0.60438274,144.42,144.39,0.65482626]
[1768373714375,0.60438274,144.42,144.4,0.65482626]
[1768373715286,4.02176625,144.43,144.4,0.65482626]
[1768373715287,4.71614914,144.43,144.4,0.65482626]
[1768373716788,0.69438289,144.42,144.39,7.58049164]
[1768373717088,0.69438289,144.42,144.39,0.65482626]
[1768373717678,4.71614914,144.43,144.4,0.65482626]
[1768373718202,4.71438235,144.42,144.39,0.71489837]
[1768373719301,4.02176625,144.41,144.39,0.71489837]
[1768373719790,4.02176625,144.4,144.38,0.71489837]
[1768373720386,0.6926161,144.41,144.38,0.71489837]
[1768373720680,4.02176625,144.4,144.38,0.71489837]
[1768373721392,4.02176625,144.41,144.38,0.71489837]
[1768373721771,4.02176625,144.42,144.39,0.71489837]
[1768373722482,11.63837663,144.43,144.39,0.71489837]
[1768373722691,11.63779008,144.44,144.39,0.71489837]
[1768373723078,4.02176625,144.43,144.39,0.71489837]
[1768373723575,4.71438235,144.43,144.39,0.71489837]
[1768373728199,0.6926161,144.43,144.39,0.71489837]
[1768373728491,0.6926161,144.42,144.39,0.71489837]
[1768373729293,12.48736564,144.48,144.39,0.71489837]
[1768373729294,5.80725494,144.5,144.43,0.71489837]
[1768373729594,4.02176625,144.46,144.42,0.71489837]
[1768373729800,4.02176625,144.43,144.39,0.71489837]
[1768373730099,4.02176625,144.44,144.39,0.71489837]
[1768373730476,4.02176625,144.44,144.4,0.71489837]
[1768373731174,0.6926161,144.43,144.4,0.71489837]
[1768373731689,4.71438235,144.45,144.41,0.71489837]
[1768373731884,0.10863783,144.44,144.41,0.71489837]
[1768373732398,0.07863783,144.44,144.41,0.71489837]
[1768373732772,4.02176625,144.44,144.4,7.63999865]
[1768373733698,4.02176625,144.44,144.39,6.92568737]
[1768373734205,0.67235129,144.43,144.39,6.92568737]
[1768373734404,0.64235128,144.43,144.39,6.92568737]
[1768373734602,0.64235128,144.43,144.4,0.71489837]
[1768373736107,0.64235128,144.43,144.4,7.63994257]
[1768373737315,4.02176625,144.48,144.4,7.63994257]
[1768373737316,121.50290508,144.49,144.43,0.7245863]
[1768373737488,121.50290508,144.49,144.4,36.85806359]
[1768373737489,4.65868401,144.46,144.41,0.7245863]
[1768373737688,0.10437918,144.45,144.42,0.7245863]
[1768373738123,0.63159237,144.44,144.4,20.2696305]
[1768373738288,24.2248062,144.48,144.41,0.7245863]
[1768373738610,4.02176625,144.45,144.41,0.7245863]
[1768373739214,4.02176625,144.45,144.41,7.64916862]
[1768373740301,11.58645014,144.46,144.41,7.64916862]
[1768373741307,4.12076625,144.45,144.41,0.7245863]
[1768373741506,4.12614543,144.43,144.39,7.64996411]
[1768373741808,4.12614543,144.43,144.4,0.7245863]
[1768373742316,4.09614543,144.43,144.4,0.7245863]
[1768373742815,0.07437918,144.43,144.39,0.7245863]
[1768373743107,4.09614543,144.43,144.39,0.7245863]
[1768373743315,4.09614543,144.43,144.4,0.7245863]
[1768373745635,4.02176625,144.44,144.41,0.7245863]
[1768373747713,4.12076625,144.44,144.4,7.6497071]
[1768373749517,4.12076625,144.44,144.41,0.7245863]
[1768373755119,0.099,144.44,144.41,0.7245863]
[1768373755612,0.60721776,144.43,144.4,6.92520627]
[1768373756020,4.63411753,144.44,144.41,0.7245863]
[1768373756199,11.55694852,144.45,144.41,0.7245863]
[1768373756395,0.61235128,144.45,144.42,0.7245863]
[1768373756807,7.5348835,144.46,144.42,0.7245863]
[1768373759117,11.55664975,144.46,144.42,0.7245863]
[1768373759321,7.5348835,144.46,144.42,0.7245863]
[1768373760121,11.55664975,144.46,144.42,0.7245863]
[1768373760654,0.61235128,144.46,144.42,7.64882226]
[1768373760821,0.61235128,144.46,144.42,11.67058851]
[1768373761010,24.17598094,144.47,144.43,0.7245863]
[1768373761331,22.72828347,144.47,144.43,0.7245863]
[1768373761707,20.15421469,144.47,144.43,0.7245863]
[1768373762020,0.61235128,144.47,144.43,0.7245863]
[1768373762220,0.099,144.46,144.42,10.22289104]
[1768373764012,0.099,144.46,144.43,7.64822501]
[1768373764312,3.18642006,144.47,144.43,7.64822501]
[1768373764508,0.61235128,144.47,144.43,7.64822501]
[1768373764718,3.18642006,144.47,144.44,0.7245863]
[1768373765111,0.61235128,144.46,144.42,0.68717737]
[1768373765326,2.57406878,144.45,144.42,0.68717737]
[1768373765921,2.67306878,144.45,144.42,0.68717737]
[1768373769034,0.099,144.45,144.42,0.68717737]
[1768373769333,2.67306878,144.45,144.42,0.68717737]
[1768373770438,0.099,144.45,144.42,0.68717737]
[1768373770732,2.57406878,144.46,144.43,0.68717737]
[1768373775141,2.67306878,144.46,144.43,0.68717737]
[1768373777153,9.59570876,144.46,144.43,0.68717737]
[1768373777446,7.02163998,144.46,144.43,0.68717737]
[1768373777635,2.57406878,144.46,144.43,0.68717737]
[1768373778840,9.49673721,144.46,144.43,0.68717737]
[1768373779020,7.02166843,144.46,144.42,0.65318847]
[1768373779221,0.60721776,144.45,144.42,0.65318847]
[1768373779543,10.10908849,144.46,144.42,0.65318847]
[1768373780851,7.53501971,144.46,144.42,0.65318847]
[1768373781227,10.10908849,144.46,144.42,0.65318847]
[1768373782648,7.53501971,144.46,144.42,0.65318847]
[1768373782847,0.099,144.45,144.42,0.65318847]
[1768373783029,7.53501971,144.46,144.42,0.65318847]
[1768373783341,6.92202259,144.47,144.43,0.65318847]
[1768373783731,7.02102259,144.47,144.43,3.22725725]
[1768373784041,7.53387136,144.48,144.45,0.65318847]
[1768373784427,10.10747762,144.49,144.45,0.65318847]
[1768373791648,22.72702191,144.5,144.46,0.65318847]
[1768373792851,2.57406878,144.49,144.46,0.65318847]
[1768373793150,20.15295313,144.5,144.46,0.65318847]
[1768373793344,2.57406878,144.49,144.46,0.65318847]
[1768373793547,2.67306878,144.49,144.46,0.65318847]
[1768373794145,2.57406878,144.49,144.46,0.65318847]
[1768373794746,2.67306878,144.49,144.46,0.65318847]
[1768373795467,22.72702191,144.5,144.46,0.65318847]
[1768373795645,2.67306878,144.49,144.46,0.65318847]
[1768373796558,0.099,144.49,144.46,0.65318847]
[1768373796761,2.67306878,144.49,144.46,0.65318847]
[1768373797759,9.59404309,144.49,144.46,0.65318847]
[1768373798639,2.57406878,144.47,144.44,0.67690815]
[1768373799061,3.18128654,144.48,144.44,0.67690815]
[1768373800162,2.57406878,144.47,144.44,0.67690815]
[1768373802749,7.52862195,144.48,144.44,0.67690815]
[1768373803061,2.57406878,144.46,144.44,0.67690815]
[1768373805462,2.67815096,144.47,144.44,0.67690815]
[1768373808653,9.60002314,144.47,144.44,0.67690815]
[1768373809866,7.02595436,144.47,144.44,0.67690815]
[1768373810067,9.60002314,144.47,144.44,0.67690815]
[1768373810444,2.67815096,144.47,144.44,0.67690815]
[1768373811768,2.57406878,144.47,144.44,0.67690815]
[1768373811947,9.5950028,144.47,144.44,0.67690815]
[1768373815158,2.57406878,144.46,144.44,0.67690815]
[1768373815473,2.57406878,144.45,144.42,0.67690815]
[1768373817071,10.10385244,144.46,144.43,0.67690815]
[1768373817370,3.18128654,144.46,144.43,0.67690815]
[1768373817564,10.10364433,144.46,144.43,0.67690815]
[1768373819868,0.60721776,144.47,144.44,0.67690815]
[1768373820074,2.67306878,144.47,144.44,0.67690815]
[1768373820373,2.57406878,144.46,144.44,0.67690815]
[1768373821156,3.18128654,144.46,144.42,0.67690815]
[1768373821363,4.63006993,144.46,144.42,0.67690815]
[1768373822070,0.10408218,144.45,144.42,0.67690815]
[1768373822275,4.12693435,144.45,144.42,0.67690815]
[1768373822474,7.53471246,144.46,144.42,0.67690815]
[1768373822771,4.02285217,144.45,144.42,0.67690815]
[1768373823756,7.53471246,144.46,144.42,0.67690815]
[1768373823952,4.02285217,144.44,144.42,0.67690815]
[1768373824159,4.02285217,144.43,144.4,0.67690815]
[1768373825977,0.60721776,144.44,144.4,0.67690815]
[1768373826173,4.02285217,144.43,144.4,0.67690815]
[1768373826564,6.9233381,144.44,144.39,6.92553659]
[1768373826765,4.02285217,144.43,144.39,6.92553659]
[1768373826960,4.02285217,144.43,144.4,0.69703097]
[1768373827177,3.99285217,144.43,144.41,0.69703097]
[1768373827962,10.94619027,144.44,144.41,0.69703097]
[1768373828168,4.02285217,144.43,144.41,0.69703097]
[1768373828870,17.9676192,144.45,144.38,17.62893069]
[1768373828871,14.87721355,144.45,144.38,17.62893069]
[1768373829058,4.02285217,144.48,144.38,13.60607852]
[1768373829261,0.66059255,144.47,144.39,4.02285217]
[1768373829467,0.01178234,144.44,144.39,4.02285217]
[1768373829885,4.68344472,144.48,144.4,4.02285217]
[1768373829886,3.29785217,144.45,144.4,4.02285217]
[1768373830057,2e-08,144.45,144.4,4.02285217]
[1768373830258,24.8876968,144.47,144.4,4.02285217]
[1768373830577,4.02285217,144.45,144.4,4.02285217]
[1768373830773,4.68344472,144.45,144.4,4.02285217]
[1768373830961,4.68344472,144.45,144.41,0.07621029]
[1768373831155,0.66059255,144.44,144.41,0.07621029]
[1768373831362,0.66059255,144.44,144.4,4.02285217]
[1768373831679,0.66059255,144.44,144.4,4.09906246]
[1768373832075,4.02285217,144.45,144.4,4.09906246]
[1768373832076,6.92244975,144.46,144.4,4.09906246]
[1768373832269,2.1337546,144.46,144.4,4.02285217]
[1768373832469,55.35204672,144.55,144.4,4.02285217]
[1768373832968,12.62,144.49,144.4,4.02285217]
[1768373833279,4.02285217,144.48,144.46,4.02285217]
[1768373833475,4.02285217,144.48,144.46,3.96285219]
[1768373833682,12.62,144.49,144.46,3.96285219]
[1768373833881,3.67639072,144.48,144.46,3.96285219]
[1768373834962,4.33698327,144.48,144.46,3.96285219]
[1768373835284,4.02285217,144.48,144.44,0.67239539]
[1768373836054,1e-08,144.5,144.42,6.9241902]
[1768373836274,8.033922,144.5,144.45,4.02285217]
[1768373836474,1e-08,144.5,144.45,16.64285217]
[1768373837260,0.66059256,144.5,144.45,16.64285217]
[1768373837460,4.02285217,144.5,144.46,0.66059255]
[1768373838170,0.1,144.52,144.46,0.66059255]
[1768373838486,4.02285217,144.5,144.46,0.66059255]
[1768373838685,0.1,144.52,144.49,4.02285217]
[1768373838888,0.1,144.52,144.48,4.68344472]
[1768373839094,17.29755104,144.53,144.48,0.66059255]
[1768373839268,17.29755104,144.53,144.52,4.02285217]
[1768373839576,0.67262232,144.52,144.46,0.66059255]
[1768373839774,24.21652979,144.53,144.46,0.66059255]
[1768373839987,24.21652979,144.53,144.45,12.62]
[1768373839988,24.21652979,144.53,144.48,0.71436387]